[Event "Titled Tuesday Blitz August 15 Early 2023"]
[White "Dilmukhametov, Artur"]
[Black "Zavgorodniy, Sergiy"]
[WhiteFideId "24179922"]
[BlackFideId "14110148"]
[WhiteElo "2296"]
[BlackElo "2604"]
[Result "1/2-1/2"]
[Round "1"]
[TimeControl "180+1"]
[Date "2023.08.15"]
[WhiteClock "0:02:41"]
[BlackClock "0:02:38"]
[Board "157"]

1. e4 {[%clk 0:02:59]}  c6 {[%clk 0:02:59]} 2. d4 {[%clk 0:02:59]}  d5 {[%clk 0:03:00]} 3. e5 {[%clk 0:02:59]}  Bf5 {[%clk 0:02:59]} 4. h4 {[%clk 0:02:59]}  h5 {[%clk 0:02:48]} 5. Bd3 {[%clk 0:02:59]}  Bxd3 {[%clk 0:02:48]} 6. Qxd3 {[%clk 0:03:00]}  e6 {[%clk 0:02:48]} 7. Bg5 {[%clk 0:03:00]}  Be7 {[%clk 0:02:47]} 8. Nf3 {[%clk 0:03:00]}  Nd7 {[%clk 0:02:45]} 9. Nbd2 {[%clk 0:02:59]}  Bxg5 {[%clk 0:02:41]} 10. Nxg5 {[%clk 0:02:58]}  Ne7 {[%clk 0:02:41]} 11. c4 {[%clk 0:02:41]}  Nf5 {[%clk 0:02:38]} 1/2-1/2


[Site "https://www.chess.com"]

[Event "Titled Tuesday Blitz August 15 Early 2023"]
[White "Rodriguez Santiago, Jaime"]
[Black "Sadykov, Ramil"]
[WhiteFideId "3100898"]
[BlackFideId "24113590"]
[WhiteElo "2294"]
[BlackElo "2602"]
[Result "0-1"]
[Round "1"]
[TimeControl "180+1"]
[Date "2023.08.15"]
[WhiteClock "0:00:08"]
[BlackClock "0:00:20"]
[Board "159"]

1. d4 {[%clk 0:02:58]}  Nf6 {[%clk 0:02:59]} 2. c4 {[%clk 0:02:59]}  e6 {[%clk 0:02:59]} 3. Nc3 {[%clk 0:02:58]}  Bb4 {[%clk 0:03:00]} 4. e3 {[%clk 0:02:58]}  O-O {[%clk 0:02:59]} 5. Ne2 {[%clk 0:02:58]}  d5 {[%clk 0:02:56]} 6. a3 {[%clk 0:02:57]}  Be7 {[%clk 0:02:57]} 7. cxd5 {[%clk 0:02:55]}  exd5 {[%clk 0:02:58]} 8. Nf4 {[%clk 0:02:54]}  Re8 {[%clk 0:02:53]} 9. Be2 {[%clk 0:02:52]}  a5 {[%clk 0:02:45]} 10. O-O {[%clk 0:02:51]}  c6 {[%clk 0:02:37]} 11. Rb1 {[%clk 0:02:16]}  Bf5 {[%clk 0:02:35]} 12. Bd3 {[%clk 0:02:15]}  Bxd3 {[%clk 0:02:34]} 13. Qxd3 {[%clk 0:02:15]}  a4 {[%clk 0:02:31]} 14. f3 {[%clk 0:02:12]}  Qa5 {[%clk 0:01:47]} 15. Bd2 {[%clk 0:01:55]}  Qa6 {[%clk 0:01:43]} 16. Qc2 {[%clk 0:01:47]}  Nbd7 {[%clk 0:01:39]} 17. e4 {[%clk 0:01:44]}  Nb6 {[%clk 0:01:36]} 18. e5 {[%clk 0:01:35]}  Nfd7 {[%clk 0:01:35]} 19. e6 {[%clk 0:01:25]}  fxe6 {[%clk 0:01:32]} 20. Nxe6 {[%clk 0:01:25]}  Bd6 {[%clk 0:01:25]} 21. Ng5 {[%clk 0:01:24]}  Nf6 {[%clk 0:01:18]} 22. Rbe1 {[%clk 0:01:21]}  Nc4 {[%clk 0:01:16]} 23. Bc1 {[%clk 0:01:18]}  b5 {[%clk 0:01:15]} 24. Qf5 {[%clk 0:01:14]}  Qa7 {[%clk 0:01:11]} 25. Re6 {[%clk 0:01:05]}  Qxd4+ {[%clk 0:01:05]} 26. Kh1 {[%clk 0:00:59]}  Qh4 {[%clk 0:01:00]} 27. f4 {[%clk 0:00:38]}  Qh5 {[%clk 0:00:42]} 28. g4 {[%clk 0:00:23]}  Qg6 {[%clk 0:00:26]} 29. Qxg6 {[%clk 0:00:18]}  hxg6 {[%clk 0:00:27]} 30. f5 {[%clk 0:00:16]}  Rxe6 {[%clk 0:00:21]} 31. fxe6 {[%clk 0:00:15]}  Nxg4 {[%clk 0:00:20]} 32. h3 {[%clk 0:00:14]}  Nf6 {[%clk 0:00:18]} 33. Nf7 {[%clk 0:00:13]}  Re8 {[%clk 0:00:18]} 34. Nxd6 {[%clk 0:00:13]}  Nxd6 {[%clk 0:00:19]} 35. Re1 {[%clk 0:00:12]}  Nde4 {[%clk 0:00:19]} 36. Nxe4 {[%clk 0:00:08]}  Nxe4 {[%clk 0:00:20]} 0-1


[Site "https://www.chess.com"]

[Event "Titled Tuesday Blitz August 15 Early 2023"]
[White "Altman, Joshua"]
[Black "Preobrazhenska_D2011"]
[WhiteFideId "426210"]
[WhiteElo "2593"]
[BlackElo "2283"]
[Result "0-1"]
[Round "1"]
[TimeControl "180+1"]
[Date "2023.08.15"]
[WhiteClock "0:00:06"]
[BlackClock "0:00:05"]
[Board "166"]

1. Nf3 {[%clk 0:03:00]}  Nf6 {[%clk 0:02:57]} 2. b3 {[%clk 0:02:58]}  e6 {[%clk 0:02:49]} 3. Bb2 {[%clk 0:02:58]}  b6 {[%clk 0:02:50]} 4. g3 {[%clk 0:02:59]}  Bb7 {[%clk 0:02:50]} 5. Bg2 {[%clk 0:02:59]}  d5 {[%clk 0:02:51]} 6. O-O {[%clk 0:02:59]}  Be7 {[%clk 0:02:51]} 7. d3 {[%clk 0:02:58]}  O-O {[%clk 0:02:50]} 8. Nbd2 {[%clk 0:02:58]}  c5 {[%clk 0:02:48]} 9. Re1 {[%clk 0:02:48]}  Nc6 {[%clk 0:02:47]} 10. e4 {[%clk 0:02:40]}  d4 {[%clk 0:02:41]} 11. a4 {[%clk 0:02:32]}  Qc7 {[%clk 0:02:30]} 12. Qe2 {[%clk 0:02:26]}  a6 {[%clk 0:02:24]} 13. h4 {[%clk 0:02:20]}  Nb4 {[%clk 0:02:16]} 14. Nf1 {[%clk 0:02:14]}  b5 {[%clk 0:02:10]} 15. Ba3 {[%clk 0:02:02]}  Nc6 {[%clk 0:01:58]} 16. N3d2 {[%clk 0:01:45]}  Nd7 {[%clk 0:01:48]} 17. h5 {[%clk 0:01:38]}  e5 {[%clk 0:01:42]} 18. g4 {[%clk 0:01:36]}  g6 {[%clk 0:01:30]} 19. Ng3 {[%clk 0:01:35]}  Rfc8 {[%clk 0:01:13]} 20. Bf3 {[%clk 0:01:11]}  Nf8 {[%clk 0:01:07]} 21. Kg2 {[%clk 0:01:09]}  Ne6 {[%clk 0:01:07]} 22. Kg1 {[%clk 0:01:00]}  Nf4 {[%clk 0:01:04]} 23. Qf1 {[%clk 0:00:59]}  Kh8 {[%clk 0:01:01]} 24. Ne2 {[%clk 0:00:59]}  Bg5 {[%clk 0:00:41]} 25. Nxf4 {[%clk 0:00:58]}  Bxf4 {[%clk 0:00:42]} 26. Bc1 {[%clk 0:00:50]}  gxh5 {[%clk 0:00:40]} 27. Qh3 {[%clk 0:00:39]}  Rg8 {[%clk 0:00:28]} 28. Qxh5 {[%clk 0:00:36]}  Rg5 {[%clk 0:00:28]} 29. Qh3 {[%clk 0:00:32]}  Rg6 {[%clk 0:00:26]} 30. Nf1 {[%clk 0:00:27]}  Rh6 {[%clk 0:00:23]} 31. Qg2 {[%clk 0:00:27]}  Rg8 {[%clk 0:00:20]} 32. Ng3 {[%clk 0:00:25]}  Ne7 {[%clk 0:00:17]} 33. Bxf4 {[%clk 0:00:24]}  exf4 {[%clk 0:00:18]} 34. Nf5 {[%clk 0:00:16]}  Nxf5 {[%clk 0:00:18]} 35. exf5 {[%clk 0:00:17]}  Bxf3 {[%clk 0:00:17]} 36. Qxf3 {[%clk 0:00:18]}  Rh4 {[%clk 0:00:16]} 37. Kf1 {[%clk 0:00:10]}  Rhxg4 {[%clk 0:00:16]} 38. Ke2 {[%clk 0:00:10]}  Qe5+ {[%clk 0:00:12]} 39. Kd2 {[%clk 0:00:11]}  Qxf5 {[%clk 0:00:12]} 40. Re7 {[%clk 0:00:10]}  Rg2 {[%clk 0:00:05]} 41. Rae1 {[%clk 0:00:09]}  c4 {[%clk 0:00:04]} 42. bxc4 {[%clk 0:00:09]}  bxc4 {[%clk 0:00:05]} 43. dxc4 {[%clk 0:00:09]}  Rh2 {[%clk 0:00:04]} 44. R1e2 {[%clk 0:00:09]}  Qa5+ {[%clk 0:00:04]} 45. Kd1 {[%clk 0:00:04]}  Rg1+ {[%clk 0:00:05]} 46. Re1 {[%clk 0:00:04]}  Rxe1+ {[%clk 0:00:04]} 47. Rxe1 {[%clk 0:00:05]}  Qxa4 {[%clk 0:00:04]} 48. Qxf4 {[%clk 0:00:05]}  Rh5 {[%clk 0:00:03]} 49. Qf6+ {[%clk 0:00:05]}  Kg8 {[%clk 0:00:04]} 50. Rh1 {[%clk 0:00:05]}  Rxh1+ {[%clk 0:00:03]} 51. Ke2 {[%clk 0:00:05]}  Qxc4+ {[%clk 0:00:04]} 52. Kf3 {[%clk 0:00:05]}  Qd5+ {[%clk 0:00:04]} 53. Kg3 {[%clk 0:00:05]}  Rg1+ {[%clk 0:00:05]} 54. Kh4 {[%clk 0:00:06]}  Qh1# {[%clk 0:00:05]} 0-1


[Site "https://www.chess.com"]

[Event "Titled Tuesday Blitz August 15 Early 2023"]
[White "Barwinska, Ewa"]
[Black "Dobrikov, Marco"]
[WhiteFideId "21833761"]
[BlackFideId "12950378"]
[WhiteElo "2279"]
[BlackElo "2588"]
[Result "0-1"]
[Round "1"]
[TimeControl "180+1"]
[Date "2023.08.15"]
[WhiteClock "0:00:00"]
[BlackClock "0:00:18"]
[Board "169"]

1. e4 {[%clk 0:03:00]}  Nf6 {[%clk 0:03:00]} 2. e5 {[%clk 0:02:56]}  Nd5 {[%clk 0:03:00]} 3. d4 {[%clk 0:02:57]}  d6 {[%clk 0:02:59]} 4. c4 {[%clk 0:02:57]}  Nb6 {[%clk 0:02:59]} 5. exd6 {[%clk 0:02:58]}  cxd6 {[%clk 0:02:59]} 6. Nc3 {[%clk 0:02:59]}  g6 {[%clk 0:02:58]} 7. Bd3 {[%clk 0:02:59]}  Bg7 {[%clk 0:02:59]} 8. Nge2 {[%clk 0:02:59]}  Nc6 {[%clk 0:02:59]} 9. Be3 {[%clk 0:02:54]}  d5 {[%clk 0:02:58]} 10. c5 {[%clk 0:02:37]}  Nd7 {[%clk 0:02:56]} 11. f4 {[%clk 0:02:36]}  Nf6 {[%clk 0:02:50]} 12. O-O {[%clk 0:02:35]}  O-O {[%clk 0:02:49]} 13. Rb1 {[%clk 0:02:32]}  a5 {[%clk 0:02:46]} 14. a3 {[%clk 0:02:31]}  Ng4 {[%clk 0:02:42]} 15. Qd2 {[%clk 0:02:26]}  b6 {[%clk 0:02:40]} 16. b4 {[%clk 0:02:25]}  axb4 {[%clk 0:02:39]} 17. axb4 {[%clk 0:02:26]}  bxc5 {[%clk 0:02:39]} 18. bxc5 {[%clk 0:02:24]}  Ra3 {[%clk 0:02:27]} 19. Nb5 {[%clk 0:02:12]}  Ra5 {[%clk 0:02:06]} 20. h3 {[%clk 0:02:06]}  Nxe3 {[%clk 0:02:06]} 21. Qxe3 {[%clk 0:02:07]}  Ba6 {[%clk 0:02:04]} 22. Kh1 {[%clk 0:01:55]}  e6 {[%clk 0:02:03]} 23. Nbc3 {[%clk 0:01:38]}  Bxd3 {[%clk 0:01:52]} 24. Qxd3 {[%clk 0:01:39]}  Qf6 {[%clk 0:01:48]} 25. Rfd1 {[%clk 0:01:13]}  Ra3 {[%clk 0:01:44]} 26. Rbc1 {[%clk 0:00:58]}  h5 {[%clk 0:01:41]} 27. Qd2 {[%clk 0:00:58]}  Rb8 {[%clk 0:01:36]} 28. Rb1 {[%clk 0:00:50]}  Rxb1 {[%clk 0:01:31]} 29. Nxb1 {[%clk 0:00:51]}  Ra4 {[%clk 0:01:25]} 30. Nbc3 {[%clk 0:00:51]}  Rc4 {[%clk 0:01:25]} 31. Nb5 {[%clk 0:00:49]}  h4 {[%clk 0:01:18]} 32. Nd6 {[%clk 0:00:43]}  Ra4 {[%clk 0:01:11]} 33. Ne8 {[%clk 0:00:43]}  Qf5 {[%clk 0:01:07]} 34. Nxg7 {[%clk 0:00:43]}  Kxg7 {[%clk 0:01:07]} 35. Qe3 {[%clk 0:00:31]}  Ra2 {[%clk 0:01:03]} 36. Nc3 {[%clk 0:00:27]}  Rc2 {[%clk 0:01:00]} 37. Nb5 {[%clk 0:00:24]}  Rb2 {[%clk 0:00:52]} 38. Nd6 {[%clk 0:00:24]}  Qc2 {[%clk 0:00:51]} 39. Rg1 {[%clk 0:00:24]}  Qd2 {[%clk 0:00:48]} 40. Qa3 {[%clk 0:00:16]}  Qxd4 {[%clk 0:00:46]} 41. f5 {[%clk 0:00:09]}  gxf5 {[%clk 0:00:44]} 42. Qa6 {[%clk 0:00:08]}  Qxc5 {[%clk 0:00:43]} 43. Ne8+ {[%clk 0:00:05]}  Kg6 {[%clk 0:00:42]} 44. Qc8 {[%clk 0:00:04]}  Rb8 {[%clk 0:00:24]} 45. Qc7 {[%clk 0:00:03]}  Rxe8 {[%clk 0:00:23]} 46. Qf4 {[%clk 0:00:04]}  Qd4 {[%clk 0:00:20]} 47. Qf3 {[%clk 0:00:04]}  Qe4 {[%clk 0:00:19]} 48. Qf2 {[%clk 0:00:04]}  Ne5 {[%clk 0:00:19]} 49. Kh2 {[%clk 0:00:04]}  f4 {[%clk 0:00:18]} 50. Qxh4 {[%clk 0:00:03]}  Qf5 {[%clk 0:00:17]} 51. Kh1 {[%clk 0:00:03]}  d4 {[%clk 0:00:18]} 52. Qf2 {[%clk 0:00:03]}  d3 {[%clk 0:00:18]} 53. g4 {[%clk 0:00:02]}  Qe4+ {[%clk 0:00:18]} 54. Kh2 {[%clk 0:00:00]}  Rh8 {[%clk 0:00:18]} 0-1


[Site "https://www.chess.com"]

[Event "Titled Tuesday Blitz August 15 Early 2023"]
[White "Deng, Henry"]
[Black "Garcia-Castany Musellas, Gal.la"]
[WhiteFideId "30965454"]
[BlackFideId "2241803"]
[WhiteElo "2586"]
[BlackElo "2276"]
[Result "1-0"]
[Round "1"]
[TimeControl "180+1"]
[Date "2023.08.15"]
[WhiteClock "0:00:20"]
[BlackClock "0:00:00"]
[Board "170"]

1. b3 {[%clk 0:03:00]}  e5 {[%clk 0:02:57]} 2. Bb2 {[%clk 0:02:59]}  Nc6 {[%clk 0:02:57]} 3. e3 {[%clk 0:02:59]}  Nf6 {[%clk 0:02:52]} 4. d4 {[%clk 0:02:54]}  exd4 {[%clk 0:02:50]} 5. exd4 {[%clk 0:02:55]}  d5 {[%clk 0:02:48]} 6. Nf3 {[%clk 0:02:48]}  Bd6 {[%clk 0:02:40]} 7. Be2 {[%clk 0:02:39]}  O-O {[%clk 0:02:40]} 8. O-O {[%clk 0:02:39]}  Bf5 {[%clk 0:02:32]} 9. c4 {[%clk 0:02:32]}  Re8 {[%clk 0:02:10]} 10. Nc3 {[%clk 0:02:24]}  Bf8 {[%clk 0:01:57]} 11. h3 {[%clk 0:02:08]}  dxc4 {[%clk 0:01:41]} 12. bxc4 {[%clk 0:02:00]}  Ne4 {[%clk 0:01:41]} 13. d5 {[%clk 0:01:53]}  Ne7 {[%clk 0:01:20]} 14. Nd4 {[%clk 0:01:48]}  Nxc3 {[%clk 0:01:05]} 15. Bxc3 {[%clk 0:01:49]}  Bg6 {[%clk 0:01:05]} 16. Bf3 {[%clk 0:01:38]}  Qd7 {[%clk 0:00:54]} 17. Qb3 {[%clk 0:01:32]}  Rab8 {[%clk 0:00:47]} 18. Rad1 {[%clk 0:01:14]}  Nf5 {[%clk 0:00:46]} 19. Bg4 {[%clk 0:01:08]}  h5 {[%clk 0:00:33]} 20. Bxf5 {[%clk 0:00:57]}  Bxf5 {[%clk 0:00:32]} 21. Nxf5 {[%clk 0:00:57]}  Qxf5 {[%clk 0:00:33]} 22. Rd3 {[%clk 0:00:57]}  h4 {[%clk 0:00:19]} 23. Rf3 {[%clk 0:00:56]}  Qg6 {[%clk 0:00:17]} 24. Bd4 {[%clk 0:00:52]}  Bd6 {[%clk 0:00:15]} 25. Bxa7 {[%clk 0:00:50]}  Ra8 {[%clk 0:00:13]} 26. Bd4 {[%clk 0:00:50]}  b6 {[%clk 0:00:12]} 27. Kh1 {[%clk 0:00:42]}  Ra3 {[%clk 0:00:08]} 28. Qd1 {[%clk 0:00:40]}  Rea8 {[%clk 0:00:06]} 29. Rxa3 {[%clk 0:00:34]}  Rxa3 {[%clk 0:00:07]} 30. Re1 {[%clk 0:00:33]}  Rxa2 {[%clk 0:00:06]} 31. Qf3 {[%clk 0:00:28]}  Ra3 {[%clk 0:00:05]} 32. Qe2 {[%clk 0:00:22]}  Kh7 {[%clk 0:00:03]} 33. Be5 {[%clk 0:00:19]}  Bxe5 {[%clk 0:00:00]} 34. Qxe5 {[%clk 0:00:20]} 1-0


[Site "https://www.chess.com"]

[Event "Titled Tuesday Blitz August 15 Early 2023"]
[White "Milosevic, Milos"]
[Black "San Thit Lwin"]
[WhiteFideId "964875"]
[BlackFideId "13001272"]
[WhiteElo "2582"]
[BlackElo "2274"]
[Result "1-0"]
[Round "1"]
[TimeControl "180+1"]
[Date "2023.08.15"]
[WhiteClock "0:00:06"]
[BlackClock "0:00:05"]
[Board "172"]

1. e4 {[%clk 0:02:58]}  Nf6 {[%clk 0:03:00]} 2. e5 {[%clk 0:02:58]}  Nd5 {[%clk 0:03:01]} 3. Nc3 {[%clk 0:02:58]}  e6 {[%clk 0:03:00]} 4. d4 {[%clk 0:02:57]}  d6 {[%clk 0:03:00]} 5. Nf3 {[%clk 0:02:54]}  Be7 {[%clk 0:02:59]} 6. Ne4 {[%clk 0:02:50]}  O-O {[%clk 0:02:57]} 7. c3 {[%clk 0:02:50]}  Nc6 {[%clk 0:02:56]} 8. Bd3 {[%clk 0:02:49]}  dxe5 {[%clk 0:02:55]} 9. dxe5 {[%clk 0:02:45]}  b6 {[%clk 0:02:50]} 10. Qe2 {[%clk 0:02:41]}  Bb7 {[%clk 0:02:47]} 11. Neg5 {[%clk 0:02:30]}  Bxg5 {[%clk 0:02:25]} 12. Nxg5 {[%clk 0:02:28]}  h6 {[%clk 0:02:25]} 13. h4 {[%clk 0:02:17]}  a6 {[%clk 0:02:15]} 14. Qe4 {[%clk 0:02:10]}  f5 {[%clk 0:01:50]} 15. exf6 {[%clk 0:02:00]}  Nxf6 {[%clk 0:01:44]} 16. Qxe6+ {[%clk 0:01:59]}  Kh8 {[%clk 0:01:43]} 17. Bc2 {[%clk 0:01:45]}  Qe8 {[%clk 0:01:25]} 18. Be3 {[%clk 0:01:38]}  Ne5 {[%clk 0:01:13]} 19. O-O-O {[%clk 0:01:19]}  Bxg2 {[%clk 0:01:03]} 20. Rh2 {[%clk 0:01:08]}  Bd5 {[%clk 0:00:58]} 21. Qf5 {[%clk 0:00:45]}  Bxa2 {[%clk 0:00:48]} 22. Bd4 {[%clk 0:00:35]}  Ned7 {[%clk 0:00:32]} 23. b3 {[%clk 0:00:20]}  a5 {[%clk 0:00:19]} 24. Kb2 {[%clk 0:00:20]}  a4 {[%clk 0:00:19]} 25. Kxa2 {[%clk 0:00:17]}  axb3+ {[%clk 0:00:19]} 26. Kxb3 {[%clk 0:00:18]}  Nc5+ {[%clk 0:00:19]} 27. Kb2 {[%clk 0:00:17]}  Na4+ {[%clk 0:00:18]} 28. Kb1 {[%clk 0:00:10]}  Nc5 {[%clk 0:00:16]} 29. Bxf6 {[%clk 0:00:06]}  Qb5+ {[%clk 0:00:16]} 30. Kc1 {[%clk 0:00:07]}  Nb3+ {[%clk 0:00:15]} 31. Kb2 {[%clk 0:00:05]}  Nc5+ {[%clk 0:00:13]} 32. Kc1 {[%clk 0:00:05]}  Ra1+ {[%clk 0:00:11]} 33. Kd2 {[%clk 0:00:05]}  Ne4+ {[%clk 0:00:10]} 34. Qxe4 {[%clk 0:00:05]}  Rxd1+ {[%clk 0:00:08]} 35. Kxd1 {[%clk 0:00:05]}  Qd7+ {[%clk 0:00:07]} 36. Kc1 {[%clk 0:00:05]}  Qc6 {[%clk 0:00:05]} 37. Qh7# {[%clk 0:00:06]} 1-0


[Site "https://www.chess.com"]

[Event "Titled Tuesday Blitz August 15 Early 2023"]
[White "Pert, Richard G"]
[Black "Smietanska, Wiktoria"]
[WhiteFideId "404748"]
[BlackFideId "21869359"]
[WhiteElo "2574"]
[BlackElo "2261"]
[Result "1-0"]
[Round "1"]
[TimeControl "180+1"]
[Date "2023.08.15"]
[WhiteClock "0:01:03"]
[BlackClock "0:00:06"]
[Board "176"]

1. d4 {[%clk 0:03:00]}  Nf6 {[%clk 0:02:57]} 2. Nc3 {[%clk 0:03:00]}  d5 {[%clk 0:02:54]} 3. e4 {[%clk 0:03:00]}  dxe4 {[%clk 0:02:52]} 4. f3 {[%clk 0:03:00]}  exf3 {[%clk 0:02:49]} 5. Nxf3 {[%clk 0:02:59]}  g6 {[%clk 0:02:48]} 6. Bc4 {[%clk 0:02:56]}  Bg7 {[%clk 0:02:46]} 7. Bg5 {[%clk 0:02:49]}  O-O {[%clk 0:02:41]} 8. Qd2 {[%clk 0:02:48]}  Bg4 {[%clk 0:02:32]} 9. Ne5 {[%clk 0:02:46]}  Bf5 {[%clk 0:02:26]} 10. O-O-O {[%clk 0:02:42]}  Nbd7 {[%clk 0:02:25]} 11. Qe2 {[%clk 0:02:15]}  h6 {[%clk 0:02:17]} 12. Bf4 {[%clk 0:02:11]}  a6 {[%clk 0:01:43]} 13. g4 {[%clk 0:02:07]}  Be6 {[%clk 0:01:04]} 14. Bxe6 {[%clk 0:02:07]}  fxe6 {[%clk 0:01:03]} 15. Nxg6 {[%clk 0:02:04]}  Rf7 {[%clk 0:01:02]} 16. Qxe6 {[%clk 0:02:00]}  Nf8 {[%clk 0:00:49]} 17. Nxf8 {[%clk 0:01:59]}  Qxf8 {[%clk 0:00:50]} 18. Bxc7 {[%clk 0:01:53]}  Rc8 {[%clk 0:00:48]} 19. Be5 {[%clk 0:01:52]}  Rc6 {[%clk 0:00:46]} 20. Qb3 {[%clk 0:01:49]}  Nxg4 {[%clk 0:00:43]} 21. Rhg1 {[%clk 0:01:35]}  Nf6 {[%clk 0:00:38]} 22. Nd5 {[%clk 0:01:25]}  Nxd5 {[%clk 0:00:26]} 23. Qxd5 {[%clk 0:01:14]}  e6 {[%clk 0:00:23]} 24. Qg2 {[%clk 0:01:10]}  Rf2 {[%clk 0:00:10]} 25. Qxg7+ {[%clk 0:01:07]}  Qxg7 {[%clk 0:00:08]} 26. Rxg7+ {[%clk 0:01:06]}  Kf8 {[%clk 0:00:06]} 27. c3 {[%clk 0:01:03]} 1-0


[Site "https://www.chess.com"]

[Event "Titled Tuesday Blitz August 15 Early 2023"]
[White "Kaminski, Victor"]
[Black "Aggelis, Nikolaos"]
[WhiteFideId "1131630"]
[BlackFideId "4213220"]
[WhiteElo "2261"]
[BlackElo "2574"]
[Result "1-0"]
[Round "1"]
[TimeControl "180+1"]
[Date "2023.08.15"]
[WhiteClock "0:00:04"]
[BlackClock "0:01:12"]
[Board "177"]

1. e4 {[%clk 0:03:00]}  c6 {[%clk 0:02:59]} 2. Nf3 {[%clk 0:02:58]}  d5 {[%clk 0:02:59]} 3. d3 {[%clk 0:02:59]}  dxe4 {[%clk 0:02:59]} 4. dxe4 {[%clk 0:03:00]}  Qxd1+ {[%clk 0:02:59]} 5. Kxd1 {[%clk 0:03:00]}  f6 {[%clk 0:02:58]} 6. Bc4 {[%clk 0:03:00]}  e5 {[%clk 0:02:58]} 7. a4 {[%clk 0:02:57]}  Bc5 {[%clk 0:02:52]} 8. Rf1 {[%clk 0:02:53]}  Ke7 {[%clk 0:02:42]} 9. c3 {[%clk 0:02:50]}  a5 {[%clk 0:02:41]} 10. Kc2 {[%clk 0:02:46]}  Be6 {[%clk 0:02:41]} 11. Nbd2 {[%clk 0:02:42]}  Nd7 {[%clk 0:02:41]} 12. Bxe6 {[%clk 0:02:36]}  Kxe6 {[%clk 0:02:41]} 13. Nc4 {[%clk 0:02:36]}  Nb6 {[%clk 0:02:36]} 14. Nxb6 {[%clk 0:02:31]}  Bxb6 {[%clk 0:02:37]} 15. Nd2 {[%clk 0:02:27]}  Ne7 {[%clk 0:02:34]} 16. Nc4 {[%clk 0:02:27]}  Bc5 {[%clk 0:02:33]} 17. Bd2 {[%clk 0:02:10]}  Rhc8 {[%clk 0:02:12]} 18. f3 {[%clk 0:02:00]}  Rc7 {[%clk 0:02:09]} 19. Rad1 {[%clk 0:01:52]}  b5 {[%clk 0:01:59]} 20. axb5 {[%clk 0:01:24]}  cxb5 {[%clk 0:02:00]} 21. Ne3 {[%clk 0:01:24]}  Rd8 {[%clk 0:01:53]} 22. Bc1 {[%clk 0:01:13]}  Rcd7 {[%clk 0:01:50]} 23. Rxd7 {[%clk 0:01:11]}  Rxd7 {[%clk 0:01:51]} 24. b3 {[%clk 0:01:05]}  g6 {[%clk 0:01:33]} 25. c4 {[%clk 0:00:57]}  Bxe3 {[%clk 0:01:29]} 26. Bxe3 {[%clk 0:00:56]}  b4 {[%clk 0:01:18]} 27. Bb6 {[%clk 0:00:46]}  Nc6 {[%clk 0:01:18]} 28. Ra1 {[%clk 0:00:43]}  Rb7 {[%clk 0:01:18]} 29. c5 {[%clk 0:00:39]}  Nd4+ {[%clk 0:01:17]} 30. Kb2 {[%clk 0:00:39]}  Kd7 {[%clk 0:01:16]} 31. Rxa5 {[%clk 0:00:36]}  Kc6 {[%clk 0:01:15]} 32. Ra8 {[%clk 0:00:28]}  Rd7 {[%clk 0:01:10]} 33. Rf8 {[%clk 0:00:09]}  f5 {[%clk 0:01:06]} 34. Re8 {[%clk 0:00:05]}  fxe4 {[%clk 0:01:01]} 35. fxe4 {[%clk 0:00:06]}  Nb5 {[%clk 0:01:01]} 36. Re6+ {[%clk 0:00:05]}  Kb7 {[%clk 0:01:01]} 37. c6+ {[%clk 0:00:05]}  Kxb6 {[%clk 0:01:01]} 38. cxd7+ {[%clk 0:00:06]}  Kc7 {[%clk 0:01:02]} 39. Rxe5 {[%clk 0:00:04]}  Nd6 {[%clk 0:01:01]} 40. Rd5 {[%clk 0:00:04]}  Kxd7 {[%clk 0:01:00]} 41. e5 {[%clk 0:00:04]}  Ke6 {[%clk 0:01:01]} 42. Rxd6+ {[%clk 0:00:05]}  Kxe5 {[%clk 0:01:02]} 43. Rd7 {[%clk 0:00:05]}  Ke4 {[%clk 0:01:02]} 44. Rxh7 {[%clk 0:00:06]}  Ke3 {[%clk 0:01:03]} 45. Rb7 {[%clk 0:00:06]}  Kf2 {[%clk 0:01:04]} 46. Rxb4 {[%clk 0:00:07]}  Kxg2 {[%clk 0:01:05]} 47. Rg4+ {[%clk 0:00:07]}  Kh3 {[%clk 0:01:05]} 48. Rxg6 {[%clk 0:00:07]}  Kh4 {[%clk 0:01:06]} 49. b4 {[%clk 0:00:07]}  Kh3 {[%clk 0:01:07]} 50. Rg8 {[%clk 0:00:05]}  Kh4 {[%clk 0:01:08]} 51. b5 {[%clk 0:00:06]}  Kh3 {[%clk 0:01:09]} 52. b6 {[%clk 0:00:06]}  Kh4 {[%clk 0:01:10]} 53. b7 {[%clk 0:00:07]}  Kh3 {[%clk 0:01:11]} 54. Rf8 {[%clk 0:00:05]}  Kh4 {[%clk 0:01:11]} 55. b8=Q {[%clk 0:00:04]}  Kh3 {[%clk 0:01:12]} 56. Qg3# {[%clk 0:00:04]} 1-0


[Site "https://www.chess.com"]

[Event "Titled Tuesday Blitz August 15 Early 2023"]
[White "Garakov, Mikhael"]
[Black "slimshady"]
[WhiteFideId "4169034"]
[WhiteElo "2572"]
[BlackElo "2259"]
[Result "0-1"]
[Round "1"]
[TimeControl "180+1"]
[Date "2023.08.15"]
[WhiteClock "0:00:57"]
[BlackClock "0:01:15"]
[Board "178"]

1. e4 {[%clk 0:02:55]}  c5 {[%clk 0:02:59]} 2. Nf3 {[%clk 0:02:54]}  d6 {[%clk 0:02:56]} 3. d4 {[%clk 0:02:52]}  cxd4 {[%clk 0:02:57]} 4. Nxd4 {[%clk 0:02:52]}  Nf6 {[%clk 0:02:57]} 5. Nc3 {[%clk 0:02:50]}  Na6 {[%clk 0:02:56]} 6. Bc4 {[%clk 0:02:48]}  Nc5 {[%clk 0:02:54]} 7. Qe2 {[%clk 0:02:48]}  e5 {[%clk 0:02:52]} 8. Nb3 {[%clk 0:02:45]}  Be7 {[%clk 0:02:50]} 9. f3 {[%clk 0:02:16]}  O-O {[%clk 0:02:45]} 10. Nxc5 {[%clk 0:02:15]}  dxc5 {[%clk 0:02:43]} 11. Be3 {[%clk 0:02:15]}  a6 {[%clk 0:02:42]} 12. a4 {[%clk 0:02:13]}  Bd7 {[%clk 0:02:35]} 13. O-O {[%clk 0:02:12]}  Qc7 {[%clk 0:02:34]} 14. Bg5 {[%clk 0:02:06]}  Bc6 {[%clk 0:02:28]} 15. Bxf6 {[%clk 0:02:01]}  Bxf6 {[%clk 0:02:29]} 16. Nd5 {[%clk 0:02:01]}  Bxd5 {[%clk 0:02:29]} 17. Bxd5 {[%clk 0:02:01]}  Rad8 {[%clk 0:02:28]} 18. Kh1 {[%clk 0:02:00]}  Be7 {[%clk 0:02:24]} 19. Qc4 {[%clk 0:02:00]}  Bg5 {[%clk 0:02:18]} 20. g3 {[%clk 0:01:59]}  Kh8 {[%clk 0:02:17]} 21. h4 {[%clk 0:01:55]}  Be7 {[%clk 0:02:10]} 22. Kh2 {[%clk 0:01:54]}  Rd6 {[%clk 0:02:06]} 23. Kg2 {[%clk 0:01:54]}  Rg6 {[%clk 0:02:05]} 24. Rh1 {[%clk 0:01:52]}  Rh6 {[%clk 0:02:01]} 25. h5 {[%clk 0:01:51]}  Bg5 {[%clk 0:01:59]} 26. c3 {[%clk 0:01:49]}  Qc8 {[%clk 0:01:55]} 27. Bxf7 {[%clk 0:01:45]}  Rf6 {[%clk 0:01:55]} 28. Bd5 {[%clk 0:01:29]}  Rxf3 {[%clk 0:01:54]} 29. Be6 {[%clk 0:01:25]}  Qd8 {[%clk 0:01:47]} 30. Raf1 {[%clk 0:01:19]}  Qd2+ {[%clk 0:01:37]} 31. Kh3 {[%clk 0:01:19]}  Qe3 {[%clk 0:01:17]} 32. Rh2 {[%clk 0:00:57]}  Rxg3# {[%clk 0:01:15]} 0-1


[Site "https://www.chess.com"]